fUST/lending_fUST_20240925
["ID","MTS","AMOUNT","RATE_DAILY","PERIOD"]
[339079266,1727211041737,-372.0,0.0002236,2]
[339079267,1727211041747,-372.0,0.0002236,2]
[339079268,1727211041757,-372.0,0.0002236,2]
[339079269,1727211041766,-372.0,0.0002236,2]
[339079270,1727211041776,-372.0,0.0002236,2]
[339079271,1727211041785,-372.0,0.0002236,2]
[339079272,1727211041794,-372.0,0.0002236,2]
[339079273,1727211041804,-372.0,0.0002236,2]
[339079274,1727211041813,-372.0,0.0002236,2]
[339079275,1727211041822,-372.0,0.0002236,2]
[339079276,1727211041832,-372.0,0.0002236,2]
[339079277,1727211041841,-372.0,0.0002236,2]
[339079278,1727211041850,-372.0,0.0002236,2]
[339079279,1727211041860,-153.0,0.0002236,2]
[339079280,1727211041869,-153.0,0.0002236,2]
[339079281,1727211041878,-153.0,0.0002236,2]
[339079282,1727211041887,-153.0,0.0002236,2]
[339079283,1727211041897,-153.0,0.0002236,2]
[339079284,1727211041906,-153.0,0.0002236,2]
[339079285,1727211041915,-153.0,0.0002236,2]
[339079286,1727211041924,-153.0,0.0002236,2]
[339079287,1727211041933,-153.0,0.0002236,2]
[339079288,1727211041942,-153.0,0.0002236,2]
[339079289,1727211041951,-153.0,0.0002236,2]
[339079290,1727211041960,-153.0,0.0002236,2]
[339079291,1727211041970,-153.0,0.0002236,2]
[339079292,1727211041979,-153.0,0.0002236,2]
[339079293,1727211041988,-387.0,0.0002236,2]
[339079294,1727211041997,-387.0,0.0002236,2]
[339079295,1727211042006,-387.0,0.0002236,2]
[339079296,1727211042015,-387.0,0.0002236,2]
[339079297,1727211042024,-387.0,0.0002236,2]
[339079298,1727211042034,-387.0,0.0002236,2]
[339079299,1727211042043,-387.0,0.0002236,2]
[339079300,1727211042052,-387.0,0.0002236,2]
[339079301,1727211042061,-387.0,0.0002236,2]
[339079302,1727211042070,-387.0,0.0002236,2]
[339079303,1727211042079,-387.0,0.0002236,2]
[339079304,1727211042090,-387.0,0.0002236,2]
[339079305,1727211042099,-387.0,0.0002236,2]
[339079306,1727211042108,-387.0,0.0002236,2]
[339079307,1727211042117,-387.0,0.0002236,2]
[339079308,1727211042126,-387.0,0.0002236,2]
[339079309,1727211042136,-387.0,0.0002236,2]
[339079310,1727211042146,-153.0,0.0002236,2]
[339079311,1727211042156,-153.0,0.0002236,2]
[339079312,1727211042166,-153.0,0.0002236,2]
[339079313,1727211042175,-153.0,0.0002236,2]
[339079314,1727211042185,-153.0,0.0002236,2]
[339079315,1727211042195,-153.0,0.0002236,2]
[339079316,1727211042205,-153.0,0.0002236,2]
[339079317,1727211042214,-153.0,0.0002236,2]
[339079318,1727211042224,-153.0,0.0002236,2]
[339079319,1727211042233,-153.0,0.0002236,2]
[339079320,1727211042242,-153.0,0.0002236,2]
[339079321,1727211042252,-153.0,0.0002236,2]
[339079322,1727211042262,-392.0,0.0002236,2]
[339079323,1727211042272,-392.0,0.0002236,2]
[339079324,1727211042282,-392.0,0.0002236,2]
[339079325,1727211042291,-392.0,0.0002236,2]
[339079326,1727211042300,-392.0,0.0002236,2]
[339079327,1727211042309,-392.0,0.0002236,2]
[339079328,1727211042319,-392.0,0.0002236,2]
[339079329,1727211042328,-392.0,0.0002236,2]
[339079330,1727211042337,-392.0,0.0002236,2]
[339079331,1727211042347,-392.0,0.0002236,2]
[339079332,1727211042357,-392.0,0.0002236,2]
[339079333,1727211042365,-392.0,0.0002236,2]
[339079334,1727211042375,-392.0,0.0002236,2]
[339079335,1727211042385,-392.0,0.0002236,2]
[339079336,1727211042394,-392.0,0.0002236,2]
[339079337,1727211042403,-392.0,0.0002236,2]
[339079338,1727211042413,-392.0,0.0002236,2]
[339079339,1727211042422,-153.0,0.0002236,2]
[339079340,1727211042431,-153.0,0.0002236,2]
[339079341,1727211042443,-153.0,0.0002236,2]
[339079342,1727211042452,-502.00599836,0.00022373,2]
[339079343,1727211042463,-500.0,0.00022373,2]
[339079344,1727211042472,-500.0,0.00022373,2]
[339079345,1727211042481,-500.0,0.00022373,2]
[339079346,1727211042574,-150.112233,0.000224,4]
[339079347,1727211042584,-150.0,0.00022414,2]
[339079348,1727211042594,-166.666666,0.00022431,2]
[339079349,1727211042605,-150.112233,0.000225,3]
[339079350,1727211042614,-38969.25035415,0.00022533,3]
[339079395,1727211043718,-63.24703545,0.00022533,3]
[339079415,1727212164190,-2321.48494844,0.00017806,2]
[339079456,1727212232773,-283.43650347,0.00017438,2]
[339079457,1727212232829,-382.91512159,0.00017438,2]
[339079469,1727212238774,-24233.64837494,0.00017438,2]
[339079471,1727212238785,-500.0,0.00017805,2]
[339079473,1727212238794,-500.0,0.00017805,2]
[339079475,1727212238803,-500.0,0.00017805,2]
[339079477,1727212238812,-500.0,0.00017805,2]
[339079479,1727212238821,-500.0,0.00017805,2]
[339079481,1727212238831,-464.24348238,0.00017805,2]
[339079483,1727212238842,-500.0,0.00017805,2]
[339079485,1727212238853,-4437.52720216,0.00017806,2]
[339079487,1727212238863,-300.0,0.00017897,2]
[339079489,1727212238873,-300.0,0.00017897,2]
[339079491,1727212238882,-6759.0121506,0.00017898,2]
[339079493,1727212238891,-1155.24902266,0.00018007,2]
[339079495,1727212238901,-6759.0121506,0.00018278,2]
[339079497,1727212238910,-6759.0121506,0.00018524,2]
[339079499,1727212238919,-6759.0121506,0.00018832,2]
[339079501,1727212238928,-6759.0121506,0.00019089,2]
[339079503,1727212238938,-6759.0121506,0.00019441,2]
[339079505,1727212238947,-420.0,0.0001953,2]
[339079507,1727212238956,-6759.0121506,0.0001961,2]
[339079509,1727212238967,-420.0,0.00019687,2]
[339079511,1727212238976,-6759.0121506,0.00019776,2]
[339079513,1727212238985,-6759.0121506,0.00020018,2]
[339079515,1727212238994,-228.25131825,0.00020461,2]
[339079517,1727212239003,-500.0,0.00020461,2]
[339079520,1727212239012,-500.0,0.00020461,2]
[339079521,1727212239021,-401.33554982,0.00020461,2]
[339079523,1727212239030,-500.0,0.00020461,2]
[339079525,1727212239039,-651.14758994,0.00020461,2]
[339079527,1727212239048,-500.0,0.00020461,2]
[339079529,1727212239058,-500.0,0.00020461,2]
[339079531,1727212239068,-400.0,0.00020461,2]
[339079533,1727212239077,-6759.0121506,0.00020462,2]
[339079535,1727212239087,-162.668394,0.000205,2]
[339079537,1727212239096,-6759.0121506,0.0002075,2]
[339079539,1727212239105,-6759.0121506,0.00020882,2]
[339079541,1727212239114,-167.112026,0.00020972,2]
[339079543,1727212239123,-150.0,0.00020977,2]
[339079545,1727212239132,-500.0,0.00021,30]
[339079547,1727212239142,-569.41728008,0.00021,30]
[339079549,1727212239153,-500.0,0.00021,30]
[339079551,1727212239164,-150.0,0.00021275,2]
[339079553,1727212239173,-587.0,0.00021311,2]
[339079555,1727212239183,-6759.0121506,0.00021316,2]
[339079557,1727212239193,-6759.0121506,0.00021392,2]
[339079559,1727212239202,-150.0,0.00021485,2]
[339079561,1727212239212,-555.61165564,0.00021516,2]
[339079564,1727212239222,-157.268538,0.00021528,2]
[339079566,1727212239231,-63221.4347868,0.00021616,3]
[339079568,1727212239245,-4281.59802315,0.00021616,3]
[339079570,1727212239254,-157.268538,0.0002163,2]
[339079572,1727212239264,-587.0,0.00021655,2]
[339079574,1727212239273,-157.268538,0.00021732,2]
[339079576,1727212239284,-150.31734997,0.00021783,2]
[339079578,1727212239293,-6759.0121506,0.00021791,2]
[339079580,1727212239302,-157.268538,0.00021834,2]
[339079582,1727212239311,-166.666666,0.00021918,2]
[339079583,1727212239322,-157.268538,0.00021936,2]
[339079585,1727212239331,-500.0,0.00021938,2]
[339079586,1727212239341,-6759.01215065,0.00021957,2]
[339079587,1727212239350,-63221.4347868,0.00021957,3]
[339079588,1727212239360,-4281.59802315,0.00021957,3]
[339079589,1727212239369,-157.268538,0.00022038,2]
[339079590,1727212239378,-63221.4347868,0.00022139,3]
[339079591,1727212239387,-4281.59802315,0.00022139,3]
[339079592,1727212239396,-157.268538,0.0002214,2]
[339079593,1727212239406,-157.268538,0.00022242,2]
[339079594,1727212239415,-45197.03641155,0.0002227,3]
[339079620,1727212240467,-8275.57258154,0.0002227,3]
[339079622,1727212240526,-9748.82579371,0.0002227,3]
[339079623,1727212240535,-4281.59802315,0.0002227,3]
[339079624,1727212240545,-153.0,0.0002228,2]
[339079625,1727212240554,-153.0,0.0002228,2]
[339079626,1727212240563,-153.0,0.0002228,2]
[339079627,1727212240572,-153.0,0.0002228,2]
[339079628,1727212240583,-153.0,0.0002228,2]
[339079629,1727212240592,-153.0,0.0002228,2]
[339079630,1727212240726,-153.0,0.0002228,2]
[339079631,1727212240735,-153.0,0.0002228,2]
[339079632,1727212240744,-153.0,0.0002228,2]
[339079633,1727212240754,-153.0,0.0002228,2]
[339079634,1727212240763,-153.0,0.0002228,2]
[339079635,1727212240772,-153.0,0.0002228,2]
[339079636,1727212240781,-153.0,0.0002228,2]
[339079637,1727212240790,-153.0,0.0002228,2]
[339079638,1727212240799,-30.06238805,0.0002228,2]
[339079639,1727212240810,-122.93761195,0.0002228,2]
[339079640,1727212240819,-153.0,0.0002228,2]
[339079641,1727212240829,-153.0,0.0002228,2]
[339079642,1727212240838,-153.0,0.0002228,2]
[339079643,1727212240847,-153.0,0.0002228,2]
[339079644,1727212240856,-113.25210762,0.0002228,2]
[339079645,1727212240872,-39.74789238,0.0002228,2]
[339079646,1727212240881,-153.0,0.0002228,2]
[339079647,1727212240890,-153.0,0.0002228,2]
[339079648,1727212240900,-153.0,0.0002228,2]
[339079649,1727212240909,-153.0,0.0002228,2]
[339079650,1727212240918,-153.0,0.0002228,2]
[339079651,1727212240927,-153.0,0.0002228,2]
[339079652,1727212240936,-153.0,0.0002228,2]
[339079653,1727212240945,-153.0,0.0002228,2]
[339079654,1727212240954,-153.0,0.0002228,2]
[339079655,1727212240963,-153.0,0.0002228,2]
[339079656,1727212240972,-153.0,0.0002228,2]
[339079657,1727212240982,-153.0,0.0002228,2]
[339079658,1727212240992,-153.0,0.0002228,2]
[339079659,1727212241002,-153.0,0.0002228,2]
[339079660,1727212241011,-153.0,0.0002228,2]
[339079661,1727212241020,-153.0,0.0002228,2]
[339079662,1727212241029,-153.0,0.0002228,2]
[339079663,1727212241039,-153.0,0.0002228,2]
[339079664,1727212241049,-153.0,0.0002228,2]
[339079665,1727212241059,-153.0,0.0002228,2]
[339079666,1727212241068,-153.0,0.0002228,2]
[339079667,1727212241078,-153.0,0.0002228,2]
[339079668,1727212241087,-153.0,0.0002228,2]
[339079669,1727212241096,-153.0,0.0002228,2]
[339079670,1727212241106,-153.0,0.0002228,2]
[339079671,1727212241115,-153.0,0.0002228,2]
[339079672,1727212241124,-153.0,0.0002228,2]
[339079673,1727212241133,-153.0,0.0002228,2]
[339079674,1727212241142,-153.0,0.0002228,2]
[339079675,1727212241152,-153.0,0.0002228,2]
[339079676,1727212241161,-153.0,0.0002228,2]
[339079677,1727212241171,-153.0,0.0002228,2]
[339079678,1727212241180,-153.0,0.0002228,2]
[339079679,1727212241189,-153.0,0.0002228,2]
[339079680,1727212241199,-153.0,0.0002228,2]
[339079681,1727212241208,-153.0,0.0002228,2]
[339079682,1727212241217,-153.0,0.0002228,2]
[339079683,1727212241226,-153.0,0.0002228,2]
[339079684,1727212241236,-153.0,0.0002228,2]
[339079685,1727212241246,-153.0,0.0002228,2]
[339079686,1727212241255,-153.0,0.0002228,2]
[339079687,1727212241264,-153.0,0.0002228,2]
[339079688,1727212241274,-153.0,0.0002228,2]
[339079689,1727212241284,-153.0,0.0002228,2]
[339079690,1727212241293,-153.0,0.0002228,2]
[339079691,1727212241302,-153.0,0.0002228,2]
[339079692,1727212241312,-153.0,0.0002228,2]
[339079693,1727212241321,-153.0,0.0002228,2]
[339079694,1727212241331,-153.0,0.0002228,2]
[339079695,1727212241340,-153.0,0.0002228,2]
[339079696,1727212241350,-153.0,0.0002228,2]
[339079697,1727212241359,-153.0,0.0002228,2]
[339079698,1727212241369,-153.0,0.0002228,2]
[339079699,1727212241379,-153.0,0.0002228,2]
[339079700,1727212241388,-153.0,0.0002228,2]
[339079701,1727212241397,-153.0,0.0002228,2]
[339079702,1727212241407,-153.0,0.0002228,2]
[339079703,1727212241416,-153.0,0.0002228,2]
[339079704,1727212241425,-153.0,0.0002228,2]
[339079705,1727212241434,-153.0,0.0002228,2]
[339079706,1727212241444,-153.0,0.0002228,2]
[339079707,1727212241453,-153.0,0.0002228,2]
[339079708,1727212241462,-153.0,0.0002228,2]
[339079709,1727212241471,-153.0,0.0002228,2]
[339079710,1727212241480,-153.0,0.0002228,2]
[339079711,1727212241489,-153.0,0.0002228,2]
[339079712,1727212241498,-153.0,0.0002228,2]
[339079713,1727212241507,-153.0,0.0002228,2]
[339079714,1727212241516,-153.0,0.0002228,2]
[339079715,1727212241526,-153.0,0.0002228,2]
[339079716,1727212241535,-153.0,0.0002228,2]
[339079717,1727212241545,-153.0,0.0002228,2]
[339079718,1727212241554,-153.0,0.0002228,2]
[339079719,1727212241563,-153.0,0.0002228,2]
[339079720,1727212241574,-153.0,0.0002228,2]
[339079721,1727212241584,-153.0,0.0002228,2]
[339079722,1727212241593,-153.0,0.0002228,2]
[339079723,1727212241605,-153.0,0.0002228,2]
[339079724,1727212241614,-153.0,0.0002228,2]
[339079725,1727212241623,-153.0,0.0002228,2]
[339079726,1727212241632,-153.0,0.0002228,2]
[339079727,1727212241643,-153.0,0.0002228,2]
[339079728,1727212241653,-153.0,0.0002228,2]
[339079729,1727212241664,-153.0,0.0002228,2]
[339079730,1727212241673,-155.0,0.0002228,2]
[339079731,1727212241683,-155.0,0.0002228,2]
[339079732,1727212241692,-155.0,0.0002228,2]
[339079733,1727212241701,-155.0,0.0002228,2]
[339079734,1727212241710,-155.0,0.0002228,2]
[339079735,1727212241719,-155.0,0.0002228,2]
[339079736,1727212241728,-155.0,0.0002228,2]
[339079737,1727212241737,-155.0,0.0002228,2]
[339079738,1727212241746,-155.0,0.0002228,2]
[339079739,1727212241755,-155.0,0.0002228,2]
[339079740,1727212241764,-155.0,0.0002228,2]
[339079741,1727212241773,-155.0,0.0002228,2]
[339079742,1727212241782,-155.0,0.0002228,2]
[339079743,1727212241791,-155.0,0.0002228,2]
[339079744,1727212241800,-155.0,0.0002228,2]
[339079745,1727212241809,-155.0,0.0002228,2]
[339079746,1727212241818,-155.0,0.0002228,2]
[339079747,1727212241828,-155.0,0.0002228,2]
[339079748,1727212241836,-155.0,0.0002228,2]
[339079749,1727212241847,-155.0,0.0002228,2]
[339079750,1727212241856,-155.0,0.0002228,2]
[339079751,1727212241866,-155.0,0.0002228,2]
[339079752,1727212241874,-171.0,0.0002228,2]
[339079753,1727212241884,-171.0,0.0002228,2]
[339079754,1727212241893,-171.0,0.0002228,2]
[339079755,1727212241902,-153.0,0.0002228,2]
[339079756,1727212241911,-153.0,0.0002228,2]
[339079757,1727212241920,-153.0,0.0002228,2]
[339079758,1727212241929,-153.0,0.0002228,2]
[339079759,1727212241938,-153.0,0.0002228,2]
[339079760,1727212241947,-153.0,0.0002228,2]
[339079761,1727212241957,-153.0,0.0002228,2]
[339079762,1727212241966,-153.0,0.0002228,2]
[339079763,1727212241975,-153.0,0.0002228,2]
[339079764,1727212241985,-153.0,0.0002228,2]
[339079765,1727212241994,-153.0,0.0002228,2]
[339079766,1727212242003,-153.0,0.0002228,2]
[339079767,1727212242013,-153.0,0.0002228,2]
[339079768,1727212242023,-153.0,0.0002228,2]
[339079769,1727212242032,-153.0,0.0002228,2]
[339079770,1727212242043,-153.0,0.0002228,2]
[339079771,1727212242054,-153.0,0.0002228,2]
[339079772,1727212242063,-153.0,0.0002228,2]
[339079773,1727212242072,-153.0,0.0002228,2]
[339079774,1727212242081,-153.0,0.0002228,2]
[339079775,1727212242091,-153.0,0.0002228,2]
[339079776,1727212242100,-153.0,0.0002228,2]
[339079777,1727212242110,-153.0,0.0002228,2]
[339079778,1727212242120,-153.0,0.0002228,2]
[339079779,1727212242130,-153.0,0.0002228,2]
[339079780,1727212242141,-153.0,0.0002228,2]
[339079781,1727212242151,-153.0,0.0002228,2]
[339079782,1727212242162,-153.0,0.0002228,2]
[339079783,1727212242171,-153.0,0.0002228,2]
[339079784,1727212242180,-153.0,0.0002228,2]
[339079785,1727212242189,-153.0,0.0002228,2]
[339079786,1727212242198,-153.0,0.0002228,2]
[339079787,1727212242207,-153.0,0.0002228,2]
[339079788,1727212242217,-153.0,0.0002228,2]
[339079789,1727212242226,-153.0,0.0002228,2]
[339079790,1727212242237,-153.0,0.0002228,2]
[339079791,1727212242249,-153.0,0.0002228,2]
[339079792,1727212242259,-153.0,0.0002228,2]
[339079793,1727212242270,-153.0,0.0002228,2]
[339079794,1727212242281,-153.0,0.0002228,2]
[339079795,1727212242291,-153.0,0.0002228,2]
[339079796,1727212242301,-153.0,0.0002228,2]
[339079797,1727212242313,-153.0,0.0002228,2]
[339079798,1727212242323,-153.0,0.0002228,2]
[339079799,1727212242433,-153.0,0.0002228,2]
[339079800,1727212242444,-153.0,0.0002228,2]
[339079801,1727212242454,-500.0,0.00022308,3]
[339079802,1727212242464,-500.0,0.00022308,3]
[339079803,1727212242474,-500.0,0.00022308,3]
[339079804,1727212242484,-500.0,0.00022308,3]
[339079805,1727212242494,-266.0,0.00022308,3]
[339079806,1727212242503,-500.0,0.00022308,3]
[339079807,1727212242513,-500.0,0.00022308,3]
[339079808,1727212242522,-500.0,0.00022308,3]
[339079809,1727212242532,-500.0,0.00022308,3]
[339079810,1727212242542,-500.0,0.00022308,3]
[339079811,1727212242551,-500.0,0.00022308,3]
[339079812,1727212242560,-500.0,0.00022308,3]
[339079813,1727212242570,-500.0,0.00022308,3]
[339079814,1727212242582,-500.0,0.00022308,3]
[339079815,1727212242591,-446.58853929,0.00022308,3]
[339079816,1727212242601,-157.268538,0.00022344,2]
[339079817,1727212242610,-166.666666,0.00022431,2]
[339079818,1727212242620,-555.61165562,0.00022437,2]
[339079819,1727212242631,-157.268538,0.00022446,2]
[339079820,1727212242642,-821.7682589,0.00022486,2]
[339079821,1727212242652,-1000.0,0.000225,2]
[339079822,1727212242663,-157.268538,0.00022548,2]
[339079823,1727212242672,-150.0,0.00022561,2]
[339079824,1727212242681,-157.268538,0.0002265,2]
[339079825,1727212242691,-643.20261056,0.00022793,2]
[339079826,1727212242701,-150.112233,0.000228,4]
[339079827,1727212242712,-150.112233,0.000228,5]
[339079828,1727212242724,-166.666666,0.00022944,2]
[339079829,1727212242734,-150.112233,0.00023,5]
[339079830,1727212242744,-200.0,0.00023,2]
[339079831,1727212242754,-232.4,0.00023035,2]
[339079832,1727212242765,-500.0,0.00023146,2]
[339079833,1727212242774,-254.37528945,0.00023146,2]
[339079834,1727212242784,-150.112233,0.000232,4]
[339079835,1727212242793,-823.0,0.00023255,2]
[339079836,1727212242803,-63221.4347868,0.00023268,3]
[339079837,1727212242813,-8563.1960463,0.00023268,3]
[339079838,1727212242822,-500.0,0.00023288,2]
[339079839,1727212242834,-500.0,0.00023288,2]
[339079840,1727212242845,-500.0,0.00023288,2]
[339079841,1727212242855,-500.0,0.00023288,2]
[339079842,1727212242866,-500.0,0.00023288,2]
[339079843,1727212242876,-500.0,0.00023288,2]
[339079844,1727212242885,-500.0,0.00023288,2]
[339079845,1727212242894,-605.53821357,0.00023288,2]
[339079846,1727212242904,-500.0,0.00023288,2]
[339079847,1727212242913,-500.0,0.00023288,2]
[339079848,1727212242922,-150.112233,0.000233,4]
[339079849,1727212242932,-555.61165562,0.00023358,2]
[339079850,1727212242941,-620.29104031,0.00023361,2]
[339079851,1727212242950,-166.666666,0.00023456,2]
[339079852,1727212242959,-150.112233,0.000236,4]
[339079853,1727212242969,-1000.0,0.00023636,2]
[339079854,1727212242978,-1000.0,0.00023694,2]
[339079855,1727212242987,-150.112233,0.000237,5]
[339079856,1727212242996,-8563.1960463,0.00023716,3]
[339079857,1727212243005,-17126.3920926,0.00023726,3]
[339079859,1727212243015,-1495.533006,0.00023736,7]
[339079860,1727212243025,-765.65499,0.00023736,7]
[339079862,1727212243034,-1495.533006,0.00023736,7]
[339079863,1727212243044,-765.65499,0.00023736,7]
[339079864,1727212243053,-167.551376,0.00023746,7]
[339079865,1727212243063,-167.551376,0.00023746,7]
[339079866,1727212243072,-5415.662019,0.00023746,7]
[339079867,1727212243083,-5415.662019,0.00023746,7]
[339079868,1727212243093,-186.962913,0.00023746,7]
[339079869,1727212243103,-186.962913,0.00023746,7]
[339079870,1727212243112,-1433.211503,0.00023746,7]
[339079871,1727212243122,-1433.211503,0.00023746,7]
[339079872,1727212243131,-1517.302457,0.00023746,7]
[339079873,1727212243143,-1517.302457,0.00023746,7]
[339079874,1727212243153,-151.0,0.00023746,7]
[339079875,1727212243163,-151.0,0.00023746,7]
[339079877,1727212243172,-152.442819,0.00023746,7]
[339079879,1727212243183,-152.442819,0.00023746,7]
[339079880,1727212243192,-2150.005428,0.00023746,7]
[339079882,1727212243202,-2150.005428,0.00023746,7]
[339079883,1727212243212,-324.547066,0.00023746,7]
[339079884,1727212243221,-299.50691566,0.00023746,7]
[339079896,1727212243972,-240.87,0.00020451,3]
[339079897,1727212243982,-207.26308154,0.00020461,2]
[339079898,1727212243994,-184.84445399,0.00020461,2]
[339079899,1727212244003,-500.0,0.00020461,2]
[339079900,1727212244013,-500.0,0.00020461,2]
[339079901,1727212244024,-500.0,0.00020461,2]
[339079902,1727212244035,-25.87702034,0.00023746,7]
[339079903,1727212244045,-324.547066,0.00023746,7]
[339079904,1727212244055,-325.383936,0.00023746,7]
[339079905,1727212244065,-151.0,0.00023746,7]
[339079906,1727212244074,-419.198849,0.00023746,7]
[339079907,1727212244085,-151.0,0.00023746,7]
[339079908,1727212244094,-419.198849,0.00023746,7]
[339079909,1727212244103,-151.0,0.00023746,7]
[339079910,1727212244113,-500.0,0.00023773,2]
[339079911,1727212244122,-232.4,0.00023802,2]
[339079912,1727212244132,-823.0,0.00023821,2]
[339079913,1727212244141,-331.37458169,0.00023873,2]
[339079914,1727212244151,-1061.18409554,0.0002389,2]
[339079915,1727212244160,-534.58287951,0.00023892,2]
[339079916,1727212244169,-501.87737867,0.00023892,2]
[339079917,1727212244179,-150.112233,0.000239,5]
[339079918,1727212244188,-150.112234,0.000239,4]
[339079919,1727212244198,-500.61949064,0.00023914,2]
[339079920,1727212244207,-500.0,0.00023923,2]
[339079921,1727212244216,-500.0,0.00023923,2]
[339079922,1727212244226,-500.0,0.00023923,2]
[339079923,1727212244236,-166.666666,0.00023969,2]
[339079924,1727212244249,-630.0,0.00024,2]
[339079925,1727212244259,-150.112233,0.000241,3]
[339079926,1727212244269,-150.112233,0.000241,3]
[339079927,1727212244278,-630.0,0.000242,2]
[339079928,1727212244288,-150.112233,0.000242,5]
[339079929,1727212244298,-313.505211,0.00024264,7]
[339079930,1727212244307,-313.505211,0.00024264,7]
[339079931,1727212244317,-555.61165562,0.00024279,2]
[339079932,1727212244327,-150.112233,0.000243,4]
[339079933,1727212244337,-209.0432937,0.00024312,2]
[339079934,1727212244346,-500.0,0.00024321,2]
[339079935,1727212244355,-150.112233,0.000244,5]
[339079936,1727212244364,-630.0,0.000244,2]
[339079937,1727212244374,-4281.59802315,0.00024401,3]
[339079938,1727212244384,-153.0,0.00024411,2]
[339079939,1727212244393,-153.0,0.00024411,2]
[339079940,1727212244403,-153.0,0.00024411,2]
[339079941,1727212244412,-153.0,0.00024411,2]
[339079942,1727212244421,-1000.0,0.00024471,2]
[339079943,1727212244431,-1000.0,0.00024471,2]
[339079944,1727212244440,-1000.0,0.00024471,2]
[339079945,1727212244450,-166.666666,0.00024482,2]
[339079946,1727212244459,-150.112233,0.000245,5]
[339079947,1727212244469,-150.112233,0.000245,4]
[339079948,1727212244478,-620.01455202,0.0002453,2]
[339079949,1727212244487,-232.4,0.00024569,2]
[339079950,1727212244497,-630.0,0.000246,2]
[339079951,1727212244506,-200.0,0.00024658,2]
[339079952,1727212244516,-380.0,0.00024658,2]
[339079953,1727212244525,-200.0,0.00024658,15]
[339079954,1727212244534,-1500.0,0.00024696,2]
[339079955,1727212244544,-150.112233,0.000247,5]
[339079956,1727212244553,-150.112233,0.000247,5]
[339079957,1727212244562,-173.07097556,0.00024726,4]
[339079958,1727212244571,-630.0,0.000248,2]
[339079959,1727212244580,-150.112233,0.000249,3]
[339079960,1727212244590,-150.112233,0.000249,2]
[339079961,1727212244599,-8152.00864422,0.000249,2]
[339079962,1727212244608,-151.0,0.00024925,7]
[339079963,1727212244617,-257.374003,0.00024925,7]
[339079964,1727212244627,-468.535611,0.00024925,7]
[339079965,1727212244636,-468.535611,0.00024925,7]
[339079966,1727212244646,-11598.877,0.00024925,2]
[339079967,1727212244656,-226.0,0.00024932,2]
[339079968,1727212244665,-555.0,0.00024932,2]
[339079969,1727212244674,-887.664,0.00024932,8]
[339079970,1727212244684,-191.56270701,0.00024932,8]
[339079971,1727212244693,-500.0,0.00025,30]
[339079972,1727212244702,-500.0,0.00025,30]
[339079973,1727212244712,-500.0,0.00025,30]
[339079974,1727212244721,-500.0,0.00025,30]
[339079975,1727212244730,-500.0,0.00025,30]
[339079976,1727212244740,-500.0,0.00025,30]
[339079977,1727212244749,-500.0,0.00025,30]
[339079978,1727212244759,-500.0,0.00025,30]
[339079979,1727212244768,-500.0,0.00025,30]